[Event "*** Titled Tuesday Blitz"]
[Site "Chess.com"]
[Date "2020.03.03"]
[Round "2"]
[White "FearNoEvil12"]
[Black "RestartingChess"]
[Result "1-0"]
[WhiteElo "2004"]
[BlackElo "2372"]
[TimeControl "180+1"]
[EndTime "13:21:07 PST"]
[Termination "FearNoEvil12 won by checkmate"]

1. e4 {[%clk 0:03:00.9]} 1... d5 {[%clk 0:03:00.9]} 2. exd5 {[%clk 0:02:59.7]}
2... Qxd5 {[%clk 0:03:01.8]} 3. Nc3 {[%clk 0:02:59.2]} 3... Qd8 {[%clk
0:03:02.7]} 4. Nf3 {[%clk 0:02:58.2]} 4... Nf6 {[%clk 0:03:03.2]} 5. Be2 {[%clk
0:02:58.5]} 5... Bf5 {[%clk 0:03:03.5]} 6. O-O {[%clk 0:02:58.6]} 6... Nc6
{[%clk 0:03:04.1]} 7. d4 {[%clk 0:02:56.7]} 7... e6 {[%clk 0:03:04.6]} 8. Bg5
{[%clk 0:02:55.2]} 8... Be7 {[%clk 0:03:03.9]} 9. Bd3 {[%clk 0:02:53.7]} 9...
Bg6 {[%clk 0:02:57.2]} 10. Bxg6 {[%clk 0:02:50.9]} 10... hxg6 {[%clk 0:02:58.1]}
11. Qe2 {[%clk 0:02:49.4]} 11... a6 {[%clk 0:02:38.6]} 12. Rad1 {[%clk
0:02:47.2]} 12... Nb4 {[%clk 0:02:08.9]} 13. Rfe1 {[%clk 0:02:28.4]} 13... Nfd5
{[%clk 0:02:04.5]} 14. Bxe7 {[%clk 0:02:26.4]} 14... Qxe7 {[%clk 0:02:03.9]} 15.
Nxd5 {[%clk 0:02:24.7]} 15... Nxd5 {[%clk 0:02:04.8]} 16. c4 {[%clk 0:02:23.6]}
16... Nf4 {[%clk 0:01:53.8]} 17. Qe4 {[%clk 0:02:23]} 17... Qf6 {[%clk
0:01:49.5]} 18. Qxb7 {[%clk 0:02:18.1]} 18... O-O {[%clk 0:01:49]} 19. Qe4
{[%clk 0:02:14.3]} 19... Rab8 {[%clk 0:01:42.1]} 20. b3 {[%clk 0:02:12.8]} 20...
a5 {[%clk 0:01:23.2]} 21. Ne5 {[%clk 0:02:11.2]} 21... Rbd8 {[%clk 0:01:14.4]}
22. Qf3 {[%clk 0:02:04.4]} 22... Qg5 {[%clk 0:01:13.1]} 23. g3 {[%clk
0:02:02.6]} 23... Nh3+ {[%clk 0:01:05.7]} 24. Kg2 {[%clk 0:02:02.7]} 24... Qh6
{[%clk 0:01:06.2]} 25. Ng4 {[%clk 0:01:57.1]} 25... Qh5 {[%clk 0:01:04]} 26. Re5
{[%clk 0:01:55.3]} 26... Ng5 {[%clk 0:01:01.2]} 27. Qf4 {[%clk 0:01:35.1]} 27...
Qh3+ {[%clk 0:01:00.5]} 28. Kg1 {[%clk 0:01:34.8]} 28... f6 {[%clk 0:01:01.1]}
29. Re3 {[%clk 0:01:28.6]} 29... e5 {[%clk 0:01:01.2]} 30. Nxe5 {[%clk
0:01:24.1]} 30... fxe5 {[%clk 0:00:57]} 31. Qxg5 {[%clk 0:01:23.3]} 31... exd4
{[%clk 0:00:57.2]} 32. Re7 {[%clk 0:01:17.1]} 32... d3 {[%clk 0:00:27.2]} 33.
Qxg6 {[%clk 0:01:14.1]} 33... Qh6 {[%clk 0:00:24.3]} 34. Qxh6 {[%clk 0:01:08.3]}
34... gxh6 {[%clk 0:00:25.2]} 35. Rxc7 {[%clk 0:01:06.5]} 35... Rfe8 {[%clk
0:00:26.1]} 36. Kf1 {[%clk 0:01:05.1]} 36... Re2 {[%clk 0:00:25.6]} 37. Rc6
{[%clk 0:00:57.1]} 37... Rxa2 {[%clk 0:00:24.8]} 38. Rxh6 {[%clk 0:00:56.2]}
38... Kf7 {[%clk 0:00:22.9]} 39. Rh5 {[%clk 0:00:53.1]} 39... Kg6 {[%clk
0:00:21.7]} 40. Rd5 {[%clk 0:00:51.9]} 40... Rf8 {[%clk 0:00:18.9]} 41. f4
{[%clk 0:00:46.8]} 41... Rxh2 {[%clk 0:00:19.4]} 42. R1xd3 {[%clk 0:00:45.9]}
42... Re8 {[%clk 0:00:19.9]} 43. Rd2 {[%clk 0:00:43.6]} 43... Rh1+ {[%clk
0:00:19.4]} 44. Kg2 {[%clk 0:00:42.9]} 44... Ree1 {[%clk 0:00:20]} 45. Kf3
{[%clk 0:00:42.3]} 45... Rhg1 {[%clk 0:00:17.5]} 46. Kg4 {[%clk 0:00:41.6]}
46... Re3 {[%clk 0:00:17.7]} 47. Rd6+ {[%clk 0:00:38.1]} 47... Kf7 {[%clk
0:00:18.2]} 48. Rd7+ {[%clk 0:00:37.8]} 48... Ke8 {[%clk 0:00:17.8]} 49. Rd8+
{[%clk 0:00:36.5]} 49... Ke7 {[%clk 0:00:18.7]} 50. R2d7+ {[%clk 0:00:36]} 50...
Kf6 {[%clk 0:00:18.5]} 51. Rd6+ {[%clk 0:00:32.7]} 51... Ke7 {[%clk 0:00:18.9]}
52. R8d7+ {[%clk 0:00:32]} 52... Ke8 {[%clk 0:00:19.1]} 53. Ra7 {[%clk
0:00:28.8]} 53... Rgxg3+ {[%clk 0:00:16.5]} 54. Kf5 {[%clk 0:00:28.8]} 54...
Rxb3 {[%clk 0:00:15]} 55. Rh6 {[%clk 0:00:25.9]} 55... Rg8 {[%clk 0:00:11.3]}
56. Rhh7 {[%clk 0:00:22.8]} 56... Rb8 {[%clk 0:00:09.6]} 57. Rae7+ {[%clk
0:00:19.8]} 57... Kd8 {[%clk 0:00:09.3]} 58. Rd7+ {[%clk 0:00:19.5]} 58... Kc8
{[%clk 0:00:09.7]} 59. Rc7+ {[%clk 0:00:18.2]} 59... Kd8 {[%clk 0:00:10.6]} 60.
Rhd7+ {[%clk 0:00:17.4]} 60... Ke8 {[%clk 0:00:11.2]} 61. Kf6 {[%clk 0:00:16.6]}
61... Rb6+ {[%clk 0:00:10.7]} 62. Ke5 {[%clk 0:00:15.6]} 62... Rb8 {[%clk
0:00:11]} 63. Re7+ {[%clk 0:00:14.6]} 63... Kd8 {[%clk 0:00:11]} 64. f5 {[%clk
0:00:15.1]} 64... a4 {[%clk 0:00:10.3]} 65. Red7+ {[%clk 0:00:13.8]} 65... Ke8
{[%clk 0:00:10.6]} 66. f6 {[%clk 0:00:14.1]} 66... Rf8 {[%clk 0:00:08.9]} 67.
f7+ {[%clk 0:00:11.6]} 67... Rxf7 {[%clk 0:00:09.8]} 68. Rxf7 {[%clk 0:00:11]}
68... a3 {[%clk 0:00:10.7]} 69. Rh7 {[%clk 0:00:10.8]} 69... Kd8 {[%clk
0:00:11.6]} 70. Rcg7 {[%clk 0:00:09.2]} 70... Rb5+ {[%clk 0:00:08.6]} 71. cxb5
{[%clk 0:00:07.1]} 71... a2 {[%clk 0:00:09.5]} 72. Rg8# {[%clk 0:00:06.8]} 1-0

[Event "*** Titled Tuesday Blitz"]
[Site "Chess.com"]
[Date "2020.03.03"]
[Round "2"]
[White "MartinMatthiesen"]
[Black "Gabrielian_Artur"]
[Result "1-0"]
[WhiteElo "2589"]
[BlackElo "2770"]
[TimeControl "180+1"]
[EndTime "13:21:08 PST"]
[Termination "MartinMatthiesen won on time"]

1. d4 {[%clk 0:03:00.9]} 1... Nf6 {[%clk 0:02:59.6]} 2. c4 {[%clk 0:03:00.2]}
2... e6 {[%clk 0:02:59.6]} 3. Nf3 {[%clk 0:02:58.8]} 3... Bb4+ {[%clk
0:02:59.5]} 4. Bd2 {[%clk 0:02:58.1]} 4... Qe7 {[%clk 0:02:59.5]} 5. Nc3 {[%clk
0:02:54]} 5... b6 {[%clk 0:02:39.8]} 6. g3 {[%clk 0:02:42.6]} 6... Bb7 {[%clk
0:02:35.3]} 7. Bg2 {[%clk 0:02:42.2]} 7... O-O {[%clk 0:02:34.4]} 8. O-O {[%clk
0:02:41.6]} 8... d6 {[%clk 0:02:33]} 9. Re1 {[%clk 0:02:27.5]} 9... Nbd7 {[%clk
0:02:28]} 10. Qc2 {[%clk 0:02:22.6]} 10... Bxc3 {[%clk 0:02:16.7]} 11. Bxc3
{[%clk 0:02:22.3]} 11... Ne4 {[%clk 0:02:12.1]} 12. Ng5 {[%clk 0:02:02.7]} 12...
Qxg5 {[%clk 0:02:03]} 13. Bxe4 {[%clk 0:02:02.4]} 13... Bxe4 {[%clk 0:02:02.3]}
14. Qxe4 {[%clk 0:02:03.3]} 14... d5 {[%clk 0:01:53.1]} 15. Qd3 {[%clk
0:01:58.9]} 15... Nf6 {[%clk 0:01:50]} 16. Rac1 {[%clk 0:01:52.5]} 16... Rfe8
{[%clk 0:01:35.8]} 17. Bd2 {[%clk 0:01:47.4]} 17... Qh5 {[%clk 0:01:22.4]} 18.
cxd5 {[%clk 0:01:35.4]} 18... Nxd5 {[%clk 0:01:19.8]} 19. e4 {[%clk 0:01:32.1]}
19... Nf6 {[%clk 0:01:18.3]} 20. Rxc7 {[%clk 0:01:28.5]} 20... Red8 {[%clk
0:01:13.8]} 21. f3 {[%clk 0:01:20.3]} 21... Ne8 {[%clk 0:00:45.3]} 22. Rc6
{[%clk 0:01:15.1]} 22... h6 {[%clk 0:00:22.7]} 23. Kg2 {[%clk 0:01:13]} 23...
Rd7 {[%clk 0:00:19.4]} 24. Be3 {[%clk 0:01:12.2]} 24... Rad8 {[%clk 0:00:19.1]}
25. Rec1 {[%clk 0:01:11.9]} 25... Nf6 {[%clk 0:00:15.8]} 26. Rc8 {[%clk
0:01:10.1]} 26... Qg6 {[%clk 0:00:14.8]} 27. Rxd8+ {[%clk 0:01:09.4]} 27... Rxd8
{[%clk 0:00:15.1]} 28. Rc3 {[%clk 0:01:05.8]} 28... h5 {[%clk 0:00:13.4]} 29. h4
{[%clk 0:01:04.5]} 29... Kh7 {[%clk 0:00:12.9]} 30. Qc2 {[%clk 0:01:03.9]} 30...
Rd7 {[%clk 0:00:11.3]} 31. Rc7 {[%clk 0:00:58.3]} 31... a5 {[%clk 0:00:10.3]}
32. Rxd7 {[%clk 0:00:56.8]} 32... Nxd7 {[%clk 0:00:10.5]} 33. Qc6 {[%clk
0:00:56.2]} 33... Nf6 {[%clk 0:00:10.5]} 34. a4 {[%clk 0:00:34.7]} 34... Kg8
{[%clk 0:00:10]} 35. Kf2 {[%clk 0:00:28.9]} 35... Kh7 {[%clk 0:00:08.4]} 36.
Qxb6 {[%clk 0:00:28.3]} 36... Nxe4+ {[%clk 0:00:03.4]} 37. fxe4 {[%clk
0:00:27.9]} 37... Qxe4 {[%clk 0:00:03.7]} 38. Qxa5 {[%clk 0:00:27.6]} 38... Qc2+
{[%clk 0:00:03.3]} 39. Qd2 {[%clk 0:00:26.9]} 39... Qxa4 {[%clk 0:00:03.5]} 40.
Qd3+ {[%clk 0:00:25]} 40... Kg8 {[%clk 0:00:03]} 41. Kg2 {[%clk 0:00:17.9]}
41... Qc6+ {[%clk 0:00:03.1]} 42. Kh2 {[%clk 0:00:17.2]} 42... Qd5 {[%clk
0:00:03.4]} 43. Bg1 {[%clk 0:00:15.3]} 43... Qa2 {[%clk 0:00:03.3]} 44. Qd2
{[%clk 0:00:14.2]} 44... Qb3 {[%clk 0:00:03.3]} 45. Qc3 {[%clk 0:00:13.8]} 45...
Qd1 {[%clk 0:00:03.4]} 46. Bf2 {[%clk 0:00:13.8]} 46... Qe2 {[%clk 0:00:03.3]}
47. Kg2 {[%clk 0:00:13.1]} 47... Qe4+ {[%clk 0:00:03.5]} 48. Qf3 {[%clk
0:00:13.3]} 48... Qc2 {[%clk 0:00:03.5]} 49. Qxh5 {[%clk 0:00:12.8]} 49... Qxb2
{[%clk 0:00:03.4]} 50. Qg4 {[%clk 0:00:12.6]} 50... Qc2 {[%clk 0:00:02.9]} 51.
h5 {[%clk 0:00:12.7]} 51... Kh7 {[%clk 0:00:02.6]} 52. Kf3 {[%clk 0:00:12.9]}
52... Qd1+ {[%clk 0:00:02.4]} 53. Kf4 {[%clk 0:00:12.6]} 53... Qc1+ {[%clk
0:00:01.4]} 54. Be3 {[%clk 0:00:12.8]} 54... Qf1+ {[%clk 0:00:01.1]} 55. Qf3
{[%clk 0:00:12.7]} 1-0

[Event "*** Titled Tuesday Blitz"]
[Site "Chess.com"]
[Date "2020.03.03"]
[Round "2"]
[White "vugarrasulov"]
[Black "farzadbfd"]
[Result "1-0"]
[WhiteElo "2886"]
[BlackElo "2618"]
[TimeControl "180+1"]
[EndTime "13:21:14 PST"]
[Termination "vugarrasulov won by resignation"]

1. e4 {[%clk 0:03:00.9]} 1... c6 {[%clk 0:02:59.1]} 2. Nc3 {[%clk 0:03:00.1]}
2... d5 {[%clk 0:02:59.1]} 3. Nf3 {[%clk 0:03:01]} 3... Bg4 {[%clk 0:02:59.2]}
4. h3 {[%clk 0:02:59.8]} 4... Bxf3 {[%clk 0:02:59.3]} 5. Qxf3 {[%clk 0:03:00.7]}
5... e6 {[%clk 0:02:59.5]} 6. d3 {[%clk 0:03:00.5]} 6... Nd7 {[%clk 0:02:57.9]}
7. g3 {[%clk 0:03:00.4]} 7... g6 {[%clk 0:02:57.7]} 8. Bg2 {[%clk 0:03:00.4]}
8... Bg7 {[%clk 0:02:58.3]} 9. O-O {[%clk 0:03:00.7]} 9... Ngf6 {[%clk
0:02:55.8]} 10. Qe2 {[%clk 0:03:00.8]} 10... Qb6 {[%clk 0:02:51.9]} 11. Kh2
{[%clk 0:02:59.1]} 11... O-O-O {[%clk 0:02:45.7]} 12. f4 {[%clk 0:02:56.4]}
12... Kb8 {[%clk 0:02:45.9]} 13. a4 {[%clk 0:02:53.3]} 13... a5 {[%clk
0:02:41.5]} 14. Ra3 {[%clk 0:02:48.5]} 14... d4 {[%clk 0:02:37.8]} 15. Nd1
{[%clk 0:02:47.6]} 15... Bf8 {[%clk 0:02:20.7]} 16. Ra1 {[%clk 0:02:43.5]} 16...
h5 {[%clk 0:02:14.1]} 17. Nf2 {[%clk 0:02:42.6]} 17... Be7 {[%clk 0:02:11.9]}
18. e5 {[%clk 0:02:37.3]} 18... Nd5 {[%clk 0:02:09.6]} 19. Ne4 {[%clk
0:02:37.8]} 19... h4 {[%clk 0:02:04.2]} 20. g4 {[%clk 0:02:35.6]} 20... Qc7
{[%clk 0:01:50.2]} 21. g5 {[%clk 0:02:32.7]} 21... Nc5 {[%clk 0:01:46.6]} 22.
Bd2 {[%clk 0:02:29.5]} 22... Nxe4 {[%clk 0:01:45.7]} 23. dxe4 {[%clk 0:02:27.5]}
23... Nb4 {[%clk 0:01:43.6]} 24. Qc4 {[%clk 0:02:27.9]} 24... Qb6 {[%clk
0:01:30.8]} 25. Rf3 {[%clk 0:02:25.1]} 25... Qc5 {[%clk 0:01:20.4]} 26. Qxc5
{[%clk 0:02:15.3]} 26... Bxc5 {[%clk 0:01:21.3]} 27. Rc1 {[%clk 0:02:13.9]}
27... Na2 {[%clk 0:01:14.3]} 28. Rd1 {[%clk 0:02:11.7]} 28... Nb4 {[%clk
0:01:13.8]} 29. Bf1 {[%clk 0:02:00.6]} 29... Bb6 {[%clk 0:01:04.4]} 30. Rb3
{[%clk 0:01:59.8]} 30... Bc5 {[%clk 0:00:41.9]} 31. Bd3 {[%clk 0:01:56.8]} 31...
Nxd3 {[%clk 0:00:40.8]} 32. cxd3 {[%clk 0:01:56.6]} 32... Bb4 {[%clk 0:00:30.6]}
33. Bxb4 {[%clk 0:01:55.9]} 33... axb4 {[%clk 0:00:31.5]} 34. Rxb4 {[%clk
0:01:56.5]} 34... c5 {[%clk 0:00:32.4]} 35. Rb5 {[%clk 0:01:53.8]} 35... c4
{[%clk 0:00:26.2]} 36. dxc4 {[%clk 0:01:52.9]} 36... d3 {[%clk 0:00:27.1]} 37.
Kg2 {[%clk 0:01:49.7]} 37... d2 {[%clk 0:00:26]} 38. Rb3 {[%clk 0:01:31.2]}
38... Rd4 {[%clk 0:00:25.7]} 39. Kf3 {[%clk 0:01:31]} 39... Rhd8 {[%clk
0:00:22.5]} 40. Rc3 {[%clk 0:01:30.8]} 40... Rd3+ {[%clk 0:00:17.7]} 41. Rxd3
{[%clk 0:01:30.6]} 41... Rxd3+ {[%clk 0:00:18.6]} 42. Ke2 {[%clk 0:00:56.8]}
42... Rxh3 {[%clk 0:00:16.9]} 43. Kxd2 {[%clk 0:00:57.4]} 43... Rf3 {[%clk
0:00:15.8]} 44. Ke2 {[%clk 0:00:51.2]} 44... Rxf4 {[%clk 0:00:15.9]} 45. Ke3
{[%clk 0:00:51.8]} 45... Rg4 {[%clk 0:00:16.2]} 46. Rd7 {[%clk 0:00:50.4]} 46...
h3 {[%clk 0:00:11.3]} 47. Rd8+ {[%clk 0:00:44.3]} 47... Kc7 {[%clk 0:00:10.3]}
48. Rh8 {[%clk 0:00:45.2]} 48... Rg3+ {[%clk 0:00:10.1]} 49. Kd4 {[%clk
0:00:45.4]} 49... Rb3 {[%clk 0:00:07.2]} 50. a5 {[%clk 0:00:40.2]} 50... Rxb2
{[%clk 0:00:06.9]} 51. Rxh3 {[%clk 0:00:38.9]} 51... Ra2 {[%clk 0:00:07.3]} 52.
Rh7 {[%clk 0:00:38.1]} 52... Rxa5 {[%clk 0:00:07.1]} 53. Rxf7+ {[%clk
0:00:38.6]} 53... Kc6 {[%clk 0:00:07.7]} 54. Rf6 {[%clk 0:00:38.9]} 54... Kd7
{[%clk 0:00:06.5]} 55. Rxg6 {[%clk 0:00:39.3]} 55... Ra1 {[%clk 0:00:07.1]} 56.
Rg7+ {[%clk 0:00:39.6]} 56... Kc6 {[%clk 0:00:06.9]} 57. Re7 {[%clk 0:00:39.7]}
57... Rd1+ {[%clk 0:00:07.1]} 58. Ke3 {[%clk 0:00:39.5]} 58... Re1+ {[%clk
0:00:07.6]} 59. Kf3 {[%clk 0:00:39.7]} 59... Rf1+ {[%clk 0:00:07.8]} 60. Kg4
{[%clk 0:00:39.2]} 60... Rg1+ {[%clk 0:00:07.4]} 61. Kh5 {[%clk 0:00:39.7]}
61... Re1 {[%clk 0:00:07.5]} 62. Rxe6+ {[%clk 0:00:39.6]} 62... Kc7 {[%clk
0:00:05.6]} 63. g6 {[%clk 0:00:39.5]} 63... Rxe4 {[%clk 0:00:05.8]} 64. g7
{[%clk 0:00:39.5]} 1-0

[Event "*** Titled Tuesday Blitz"]
[Site "Chess.com"]
[Date "2020.03.03"]
[Round "2"]
[White "Harry_Rakkel"]
[Black "GrigorGrigorov"]
[Result "0-1"]
[WhiteElo "2554"]
[BlackElo "2757"]
[TimeControl "180+1"]
[EndTime "13:21:27 PST"]
[Termination "GrigorGrigorov won on time"]

1. d4 {[%clk 0:02:59]} 1... Nf6 {[%clk 0:02:56.7]} 2. Nf3 {[%clk 0:02:58.3]}
2... e6 {[%clk 0:02:56.1]} 3. Bf4 {[%clk 0:02:56.9]} 3... d5 {[%clk 0:02:54.9]}
4. e3 {[%clk 0:02:55.5]} 4... Bd6 {[%clk 0:02:55.2]} 5. Nbd2 {[%clk 0:02:51.6]}
5... O-O {[%clk 0:02:53.7]} 6. Bd3 {[%clk 0:02:49.1]} 6... b6 {[%clk 0:02:51.4]}
7. Bg3 {[%clk 0:02:46.6]} 7... c5 {[%clk 0:02:44.4]} 8. c3 {[%clk 0:02:41.7]}
8... Ba6 {[%clk 0:02:37.6]} 9. Bxa6 {[%clk 0:02:38.6]} 9... Nxa6 {[%clk
0:02:38.5]} 10. Qe2 {[%clk 0:02:38]} 10... Nc7 {[%clk 0:02:27.1]} 11. O-O {[%clk
0:02:36.8]} 11... Bxg3 {[%clk 0:02:21.9]} 12. hxg3 {[%clk 0:02:35.5]} 12... Nce8
{[%clk 0:02:02.6]} 13. dxc5 {[%clk 0:02:30.9]} 13... bxc5 {[%clk 0:02:01.4]} 14.
e4 {[%clk 0:02:30.7]} 14... Qb6 {[%clk 0:01:57.8]} 15. b3 {[%clk 0:02:26.2]}
15... a5 {[%clk 0:01:54]} 16. c4 {[%clk 0:02:22]} 16... d4 {[%clk 0:01:48.5]}
17. e5 {[%clk 0:02:19.8]} 17... Nd7 {[%clk 0:01:48.7]} 18. Qe4 {[%clk
0:02:03.9]} 18... Ra6 {[%clk 0:01:40.1]} 19. Ng5 {[%clk 0:01:57.4]} 19... f5
{[%clk 0:01:39.6]} 20. exf6 {[%clk 0:01:50.3]} 20... Nexf6 {[%clk 0:01:39.7]}
21. Qh4 {[%clk 0:01:47.5]} 21... h6 {[%clk 0:01:38.6]} 22. Nge4 {[%clk
0:01:45.8]} 22... Nxe4 {[%clk 0:01:39]} 23. Nxe4 {[%clk 0:01:45]} 23... Nf6
{[%clk 0:01:39.4]} 24. Rfe1 {[%clk 0:01:39.2]} 24... Nxe4 {[%clk 0:01:38.9]} 25.
Rxe4 {[%clk 0:01:37.8]} 25... a4 {[%clk 0:01:35.7]} 26. Rb1 {[%clk 0:01:13.8]}
26... axb3 {[%clk 0:01:29.2]} 27. Rxb3 {[%clk 0:01:13.2]} 27... Qa7 {[%clk
0:01:24.6]} 28. Rf3 {[%clk 0:01:06.8]} 28... Rxf3 {[%clk 0:01:18.8]} 29. gxf3
{[%clk 0:01:06.7]} 29... Qd7 {[%clk 0:01:14.3]} 30. Re2 {[%clk 0:00:54.5]} 30...
Ra4 {[%clk 0:00:51.2]} 31. Rc2 {[%clk 0:00:50.3]} 31... d3 {[%clk 0:00:35.4]}
32. Rd2 {[%clk 0:00:49.4]} 32... Ra3 {[%clk 0:00:34.7]} 33. Qe4 {[%clk
0:00:47.4]} 33... Rc3 {[%clk 0:00:30.3]} 34. Kg2 {[%clk 0:00:37.6]} 34... Qd6
{[%clk 0:00:25.2]} 35. a4 {[%clk 0:00:34.9]} 35... e5 {[%clk 0:00:23.2]} 36. a5
{[%clk 0:00:33.8]} 36... Qd4 {[%clk 0:00:23]} 37. a6 {[%clk 0:00:24.5]} 37...
Qxe4 {[%clk 0:00:15.9]} 38. fxe4 {[%clk 0:00:23.8]} 38... Ra3 {[%clk 0:00:16.8]}
39. a7 {[%clk 0:00:20.4]} 39... Rxa7 {[%clk 0:00:16.5]} 40. Rxd3 {[%clk
0:00:20.4]} 40... Ra4 {[%clk 0:00:16.9]} 41. Rd5 {[%clk 0:00:18.9]} 41... Rxc4
{[%clk 0:00:17]} 42. Rxe5 {[%clk 0:00:18.8]} 42... Rc3 {[%clk 0:00:16.4]} 43. g4
{[%clk 0:00:15.1]} 43... Kf7 {[%clk 0:00:16.1]} 44. f3 {[%clk 0:00:15.1]} 44...
Kf6 {[%clk 0:00:15.9]} 45. Rd5 {[%clk 0:00:15.1]} 45... Ke6 {[%clk 0:00:15.4]}
46. Kg3 {[%clk 0:00:14.9]} 46... c4 {[%clk 0:00:14.3]} 47. Kf4 {[%clk
0:00:13.6]} 47... g5+ {[%clk 0:00:12.9]} 48. Kg3 {[%clk 0:00:12.8]} 48... Rc1
{[%clk 0:00:13.8]} 49. Kf2 {[%clk 0:00:12.2]} 49... c3 {[%clk 0:00:12.2]} 50.
Ke3 {[%clk 0:00:09.7]} 50... c2 {[%clk 0:00:09.2]} 51. Kd2 {[%clk 0:00:09.2]}
51... Rf1 {[%clk 0:00:08.9]} 52. Kxc2 {[%clk 0:00:09]} 52... Rxf3 {[%clk
0:00:09]} 53. Ra5 {[%clk 0:00:08.3]} 53... Rg3 {[%clk 0:00:06.5]} 54. Ra6+
{[%clk 0:00:06.6]} 54... Ke5 {[%clk 0:00:06.8]} 55. Rxh6 {[%clk 0:00:06]} 55...
Kxe4 {[%clk 0:00:06.9]} 56. Kd2 {[%clk 0:00:02.8]} 56... Kf3 {[%clk 0:00:04.3]}
57. Rf6+ {[%clk 0:00:02.2]} 57... Kg2 {[%clk 0:00:03.4]} 0-1

[Event "*** Titled Tuesday Blitz"]
[Site "Chess.com"]
[Date "2020.03.03"]
[Round "2"]
[White "AnkitGajwa"]
[Black "Aleksandr_Kozak"]
[Result "1-0"]
[WhiteElo "2477"]
[BlackElo "2220"]
[TimeControl "180+1"]
[EndTime "13:21:30 PST"]
[Termination "AnkitGajwa won on time"]

1. e4 {[%clk 0:03:00.9]} 1... e5 {[%clk 0:02:58.8]} 2. Nf3 {[%clk 0:02:58.8]}
2... Nc6 {[%clk 0:02:58.5]} 3. Bb5 {[%clk 0:02:57.6]} 3... f5 {[%clk 0:02:58.6]}
4. Nc3 {[%clk 0:02:57]} 4... fxe4 {[%clk 0:02:56.5]} 5. Nxe4 {[%clk 0:02:57]}
5... Nf6 {[%clk 0:02:56.5]} 6. Nxf6+ {[%clk 0:02:57.3]} 6... Qxf6 {[%clk
0:02:55.9]} 7. Qe2 {[%clk 0:02:57.9]} 7... Be7 {[%clk 0:02:29.9]} 8. d4 {[%clk
0:02:55.4]} 8... Nxd4 {[%clk 0:02:22.7]} 9. Nxd4 {[%clk 0:02:32.1]} 9... exd4
{[%clk 0:02:22.2]} 10. O-O {[%clk 0:02:26.8]} 10... c6 {[%clk 0:02:18.5]} 11.
Re1 {[%clk 0:01:40]} 11... cxb5 {[%clk 0:02:10.9]} 12. Qh5+ {[%clk 0:01:32.8]}
12... Qf7 {[%clk 0:01:54.9]} 13. Qe5 {[%clk 0:01:20.8]} 13... O-O {[%clk
0:01:52.6]} 14. Re2 {[%clk 0:01:04.2]} 14... Bf6 {[%clk 0:01:40.8]} 15. Qxb5
{[%clk 0:00:57.6]} 15... d5 {[%clk 0:01:36.4]} 16. Bf4 {[%clk 0:00:55.9]} 16...
Bf5 {[%clk 0:01:21.4]} 17. Rae1 {[%clk 0:00:54.1]} 17... h6 {[%clk 0:01:19.2]}
18. Be5 {[%clk 0:00:47.9]} 18... Bxe5 {[%clk 0:01:12.9]} 19. Rxe5 {[%clk
0:00:47.6]} 19... Bxc2 {[%clk 0:00:59.5]} 20. f3 {[%clk 0:00:38.7]} 20... d3
{[%clk 0:00:49.7]} 21. Qb4 {[%clk 0:00:35.1]} 21... Rfe8 {[%clk 0:00:45.7]} 22.
Re7 {[%clk 0:00:33.6]} 22... Rxe7 {[%clk 0:00:40.5]} 23. Rxe7 {[%clk 0:00:32.7]}
23... d2 {[%clk 0:00:26.1]} 24. Rxf7 {[%clk 0:00:30.9]} 24... d1=Q+ {[%clk
0:00:25.5]} 25. Kf2 {[%clk 0:00:31.4]} 25... Kxf7 {[%clk 0:00:15.1]} 26. Qxb7+
{[%clk 0:00:31.3]} 26... Kg6 {[%clk 0:00:15.7]} 27. Qxa8 {[%clk 0:00:31.3]}
27... Qd2+ {[%clk 0:00:15.6]} 28. Kg3 {[%clk 0:00:31.2]} 28... Qg5+ {[%clk
0:00:09.5]} 29. Kf2 {[%clk 0:00:31.1]} 29... Qd2+ {[%clk 0:00:09.5]} 30. Kg3
{[%clk 0:00:30.7]} 30... Qd4 {[%clk 0:00:10.2]} 31. Qc6+ {[%clk 0:00:29]} 31...
Kh7 {[%clk 0:00:09.3]} 32. Qxc2+ {[%clk 0:00:29.1]} 32... g6 {[%clk 0:00:09.7]}
33. Qe2 {[%clk 0:00:24.6]} 33... h5 {[%clk 0:00:07.8]} 34. h4 {[%clk 0:00:21.5]}
34... Kh6 {[%clk 0:00:08.7]} 35. b3 {[%clk 0:00:18.4]} 35... Qf6 {[%clk
0:00:08.2]} 36. Qe3+ {[%clk 0:00:17.4]} 36... g5 {[%clk 0:00:07.2]} 37. hxg5+
{[%clk 0:00:16.9]} 37... Qxg5+ {[%clk 0:00:08.1]} 38. Qxg5+ {[%clk 0:00:16.3]}
38... Kxg5 {[%clk 0:00:09]} 39. Kf2 {[%clk 0:00:13.9]} 39... h4 {[%clk
0:00:09.2]} 40. Ke3 {[%clk 0:00:12]} 40... Kf5 {[%clk 0:00:10.1]} 41. b4 {[%clk
0:00:09.6]} 41... Ke5 {[%clk 0:00:08.7]} 42. a4 {[%clk 0:00:09.5]} 42... d4+
{[%clk 0:00:08.8]} 43. Kd3 {[%clk 0:00:09.5]} 43... Kf4 {[%clk 0:00:09.4]} 44.
Kxd4 {[%clk 0:00:08.2]} 44... Kg3 {[%clk 0:00:10.3]} 45. f4 {[%clk 0:00:06.7]}
45... Kxg2 {[%clk 0:00:11.2]} 46. f5 {[%clk 0:00:05.8]} 46... h3 {[%clk
0:00:12.1]} 47. f6 {[%clk 0:00:04.9]} 47... h2 {[%clk 0:00:13]} 48. f7 {[%clk
0:00:05]} 48... h1=Q {[%clk 0:00:13.9]} 49. f8=Q {[%clk 0:00:04.7]} 49... Qf1
{[%clk 0:00:14.5]} 50. Qxf1+ {[%clk 0:00:03.3]} 50... Kxf1 {[%clk 0:00:13.8]}
51. b5 {[%clk 0:00:03.9]} 51... Ke2 {[%clk 0:00:13.6]} 52. a5 {[%clk 0:00:04.4]}
52... Kd2 {[%clk 0:00:13.3]} 53. b6 {[%clk 0:00:04.9]} 1-0